fUST/lending_fUST_20240807
["ID","MTS","AMOUNT","RATE_DAILY","PERIOD"]
[334395582,1723029058460,-500.0,0.0003315,14]
[334395583,1723029058469,-1090.48,0.0003315,14]
[334395584,1723029058478,-983.41,0.0003315,14]
[334395585,1723029058488,-500.0,0.0003315,14]
[334395586,1723029058498,-537.58746375,0.0003315,14]
[334395587,1723029058508,-437.25780534,0.0003315,14]
[334395588,1723029058517,-524.96501985,0.0003315,14]
[334395589,1723029058527,-500.0,0.0003315,14]
[334395590,1723029058536,-500.0,0.0003315,14]
[334395591,1723029058546,-500.0,0.0003315,14]
[334395592,1723029058555,-502.3992635,0.0003315,14]
[334395593,1723029058564,-500.0,0.0003315,14]
[334395594,1723029058573,-500.83942618,0.0003315,10]
[334395595,1723029058582,-1237.41,0.0003315,14]
[334395596,1723029058591,-500.0,0.0003315,14]
[334395597,1723029058600,-395.18286269,0.0003315,14]
[334395598,1723029058609,-500.0,0.0003315,14]
[334395599,1723029058618,-901.85,0.0003315,14]
[334395600,1723029058628,-561.49500905,0.0003315,14]
[334395601,1723029058637,-500.0,0.0003315,14]
[334395602,1723029058647,-500.0,0.0003315,14]
[334395603,1723029058656,-560.13821172,0.0003315,14]
[334395604,1723029058665,-500.0,0.0003315,14]
[334395605,1723029058674,-500.0,0.0003315,14]
[334395606,1723029058683,-705.74,0.0003315,14]
[334395607,1723029058693,-500.0,0.0003315,14]
[334395608,1723029058702,-500.0,0.0003315,14]
[334395609,1723029058711,-867.95,0.0003315,14]
[334395610,1723029058724,-500.0,0.0003315,14]
[334395611,1723029058741,-500.0,0.0003315,14]
[334395612,1723029058756,-513.74835961,0.0003315,2]
[334395613,1723029058767,-500.0,0.0003315,14]
[334395614,1723029058781,-890.32,0.0003315,14]
[334395615,1723029058795,-500.0,0.0003315,14]
[334395616,1723029058809,-500.0,0.0003315,14]
[334395617,1723029058824,-500.0,0.0003315,14]
[334395618,1723029058842,-500.0,0.0003315,14]
[334395619,1723029058855,-500.0,0.0003315,14]
[334395620,1723029058868,-641.8,0.0003315,14]
[334395621,1723029058881,-500.0,0.0003315,14]
[334395622,1723029058896,-500.0,0.0003315,14]
[334395623,1723029058909,-500.0,0.0003315,14]
[334395624,1723029058919,-663.8,0.0003315,14]
[334395625,1723029058932,-500.0,0.0003315,14]
[334395626,1723029058945,-500.0,0.0003315,14]
[334395627,1723029058960,-500.0,0.0003315,14]
[334395628,1723029058975,-500.0,0.0003315,14]
[334395629,1723029058990,-500.0,0.0003315,14]
[334395630,1723029059005,-500.0,0.0003315,14]
[334395631,1723029059015,-500.0,0.0003315,14]
[334395632,1723029059027,-500.0,0.0003315,14]
[334395633,1723029059040,-500.0,0.0003315,14]
[334395634,1723029059054,-500.0,0.0003315,14]
[334395635,1723029059066,-610.03,0.0003315,14]
[334395636,1723029059080,-500.0,0.0003315,14]
[334395637,1723029059099,-500.0,0.0003315,14]
[334395638,1723029059111,-500.0,0.0003315,14]
[334395639,1723029059123,-500.0,0.0003315,14]
[334395640,1723029059135,-1049.44,0.0003315,14]
[334395641,1723029059146,-500.0,0.0003315,14]
[334395642,1723029059159,-500.0,0.0003315,14]
[334395643,1723029059171,-658.92,0.0003315,14]
[334395644,1723029059182,-500.0,0.0003315,14]
[334395645,1723029059194,-634.91,0.0003315,14]
[334395646,1723029059206,-500.0,0.0003315,14]
[334395647,1723029059218,-618.32,0.0003315,14]
[334395648,1723029059230,-841.16,0.0003315,14]
[334395649,1723029059242,-500.0,0.0003315,14]
[334395650,1723029059254,-508.16,0.0003315,14]
[334395651,1723029059267,-543.25,0.0003315,14]
[334395652,1723029059279,-500.0,0.0003315,14]
[334395653,1723029059290,-2103.08,0.0003315,14]
[334395654,1723029059301,-500.0,0.0003315,14]
[334395655,1723029059313,-500.0,0.0003315,14]
[334395656,1723029059324,-500.0,0.0003315,14]
[334395657,1723029059337,-500.0,0.0003315,14]
[334395658,1723029059349,-500.0,0.0003315,14]
[334395659,1723029059362,-500.0,0.0003315,14]
[334395660,1723029059374,-1135.85,0.0003315,14]
[334395661,1723029059386,-500.0,0.0003315,14]
[334395662,1723029059398,-500.0,0.0003315,14]
[334395663,1723029059409,-726.44,0.0003315,14]
[334395664,1723029059421,-606.85,0.0003315,14]
[334395665,1723029059434,-500.0,0.0003315,14]
[334395666,1723029059449,-665.91,0.0003315,14]
[334395667,1723029059462,-782.36,0.0003315,14]
[334395668,1723029059473,-500.0,0.0003315,14]
[334395669,1723029059485,-653.76,0.0003315,14]
[334395670,1723029059497,-500.0,0.0003315,14]
[334395671,1723029059511,-500.0,0.0003315,14]
[334395672,1723029059522,-572.65,0.0003315,14]
[334395673,1723029059534,-552.06,0.0003315,14]
[334395674,1723029059548,-723.92,0.0003315,14]
[334395675,1723029059560,-2180.22,0.0003315,14]
[334395676,1723029059571,-500.0,0.0003315,14]
[334395677,1723029059587,-500.0,0.0003315,14]
[334395678,1723029059602,-531.95,0.0003315,14]
[334395679,1723029059614,-738.14,0.0003315,14]
[334395681,1723029059625,-500.0,0.0003315,14]
[334395682,1723029059637,-500.0,0.0003315,14]
[334395683,1723029059649,-500.0,0.0003315,14]
[334395684,1723029059661,-500.0,0.0003315,14]
[334395685,1723029059673,-500.0,0.0003315,14]
[334395686,1723029059685,-500.0,0.0003315,14]
[334395687,1723029059697,-500.0,0.0003315,14]
[334395688,1723029059710,-500.0,0.0003315,14]
[334395689,1723029059721,-561.59,0.0003315,14]
[334395690,1723029059734,-500.0,0.0003315,14]
[334395691,1723029059745,-500.0,0.0003315,14]
[334395692,1723029059757,-500.0,0.0003315,14]
[334395693,1723029059768,-500.0,0.0003315,14]
[334395694,1723029059780,-500.0,0.0003315,14]
[334395695,1723029059792,-526.38,0.0003315,14]
[334395696,1723029059804,-500.0,0.0003315,14]
[334395697,1723029059817,-655.78,0.0003315,14]
[334395698,1723029059829,-500.0,0.0003315,14]
[334395699,1723029059842,-997.18,0.0003315,14]
[334395700,1723029059854,-1854.37,0.0003315,14]
[334395701,1723029059866,-500.0,0.0003315,14]
[334395702,1723029059878,-200.0,0.0003315,7]
[334395703,1723029059891,-1754.86,0.0003315,14]
[334395704,1723029059904,-500.0,0.0003315,14]
[334395705,1723029059916,-500.0,0.0003315,14]
[334395706,1723029059928,-637.98,0.0003315,14]
[334395707,1723029059940,-500.0,0.0003315,14]
[334395708,1723029059953,-2280.75,0.0003315,14]
[334395709,1723029059965,-524.01,0.0003315,14]
[334395710,1723029059977,-500.0,0.0003315,14]
[334395711,1723029059993,-179.54999297,0.0003315,14]
[334395712,1723029060007,-500.0,0.0003315,14]
[334395713,1723029060020,-500.0,0.0003315,14]
[334395714,1723029060032,-500.0,0.0003315,14]
[334395715,1723029060044,-528.8,0.0003315,14]
[334395716,1723029060057,-500.0,0.0003315,14]
[334395717,1723029060071,-500.0,0.0003315,14]
[334395718,1723029060084,-1498.25,0.0003315,14]
[334395719,1723029060096,-500.0,0.0003315,14]
[334395720,1723029060108,-693.96,0.0003315,14]
[334395721,1723029060120,-500.0,0.0003315,14]
[334395722,1723029060132,-500.0,0.0003315,14]
[334395723,1723029060144,-529.8888831,0.0003315,14]
[334395724,1723029060156,-627.54,0.0003315,14]
[334395725,1723029060168,-235.40805061,0.0003315,14]
[334395726,1723029060181,-500.0,0.0003315,14]
[334395727,1723029060193,-3342.3,0.0003315,14]
[334395728,1723029060205,-531.99,0.0003315,14]
[334395729,1723029060218,-500.0,0.0003315,14]
[334395730,1723029060230,-1236.8,0.0003315,14]
[334395731,1723029060242,-500.0,0.0003315,14]
[334395732,1723029060254,-728.37,0.0003315,14]
[334395733,1723029060268,-1161.27,0.0003315,14]
[334395734,1723029060279,-500.0,0.0003315,14]
[334395735,1723029060292,-3031.19,0.0003315,14]
[334395736,1723029060304,-938.86,0.0003315,14]
[334395737,1723029060316,-500.0,0.0003315,14]
[334395738,1723029060328,-500.0,0.0003315,14]
[334395739,1723029060341,-500.0,0.0003315,14]
[334395740,1723029060353,-500.0,0.0003315,14]
[334395741,1723029060366,-1919.23,0.0003315,14]
[334395742,1723029060379,-1225.39,0.0003315,14]
[334395743,1723029060391,-500.0,0.0003315,14]
[334395744,1723029060401,-884.22,0.0003315,14]
[334395745,1723029060411,-1075.22,0.0003315,14]
[334395746,1723029060421,-500.0,0.0003315,14]
[334395747,1723029060431,-500.0,0.0003315,14]
[334395748,1723029060441,-500.0,0.0003315,14]
[334395749,1723029060451,-500.0,0.0003315,14]
[334395750,1723029060461,-799.55,0.0003315,14]
[334395751,1723029060470,-665.15,0.0003315,14]
[334395752,1723029060729,-500.0,0.0003315,14]
[334395753,1723029060757,-578.83,0.0003315,14]
[334395754,1723029060773,-500.0,0.0003315,14]
[334395755,1723029060783,-500.0,0.0003315,14]
[334395756,1723029060792,-511.4259117,0.0003315,14]
[334395757,1723029060802,-500.0,0.0003315,14]
[334395758,1723029060811,-500.0,0.0003315,14]
[334395759,1723029060821,-1407.14,0.0003315,14]
[334395760,1723029060833,-538.06,0.0003315,14]
[334395761,1723029060842,-500.0,0.0003315,14]
[334395762,1723029060853,-3464.274385,0.0003315,14]
[334395763,1723029060862,-500.0,0.0003315,14]
[334395764,1723029060871,-1237.71,0.0003315,14]
[334395765,1723029060881,-500.0,0.0003315,14]
[334395766,1723029060890,-3398.02,0.0003315,14]
[334395767,1723029060899,-2584.23,0.0003315,14]
[334395768,1723029060908,-798.6,0.0003315,14]
[334395769,1723029060920,-604.27,0.0003315,14]
[334395770,1723029060931,-500.0,0.0003315,14]
[334395771,1723029060942,-500.0,0.0003315,14]
[334395772,1723029060952,-500.0,0.0003315,14]
[334395773,1723029060961,-500.0,0.0003315,2]
[334395774,1723029060972,-500.0,0.0003315,14]
[334395775,1723029060983,-545.81679942,0.0003315,14]
[334395776,1723029060996,-500.0,0.0003315,14]
[334395777,1723029061008,-500.0,0.0003315,14]
[334395778,1723029061018,-1456.08,0.0003315,14]
[334395779,1723029061030,-968.66,0.0003315,14]
[334395780,1723029061043,-500.0,0.0003315,14]
[334395781,1723029061054,-1000.35,0.0003315,14]
[334395782,1723029061064,-1104.57,0.0003315,14]
[334395783,1723029061075,-785.13,0.0003315,14]
[334395784,1723029061085,-678.62,0.0003315,14]
[334395785,1723029061095,-2102.23,0.0003315,14]
[334395786,1723029061105,-786.56,0.0003315,14]
[334395787,1723029061114,-1724.83,0.0003315,14]
[334395788,1723029061128,-500.0,0.0003315,14]
[334395789,1723029061139,-1026.47,0.0003315,14]
[334395790,1723029061149,-500.0,0.0003315,14]
[334395791,1723029061158,-2410.79,0.0003315,14]
[334395792,1723029061168,-1027.92,0.0003315,14]
[334395793,1723029061178,-572.28,0.0003315,14]
[334395794,1723029061188,-500.0,0.0003315,14]
[334395795,1723029061198,-827.4,0.0003315,14]
[334395796,1723029061208,-500.0,0.0003315,14]
[334395797,1723029061219,-500.0,0.0003315,14]
[334395798,1723029061231,-500.0,0.0003315,14]
[334395799,1723029061242,-500.0,0.0003315,14]
[334395800,1723029061253,-500.0,0.0003315,14]
[334395801,1723029061263,-1638.94,0.0003315,14]
[334395802,1723029061274,-500.0,0.0003315,14]
[334395803,1723029061284,-2976.45,0.0003315,14]
[334395804,1723029061293,-500.0,0.0003315,14]
[334395805,1723029061303,-500.0,0.0003315,14]
[334395806,1723029061313,-728.06,0.0003315,14]
[334395807,1723029061324,-500.0,0.0003315,14]
[334395808,1723029061336,-1275.04,0.0003315,14]
[334395809,1723029061346,-500.0,0.0003315,14]
[334395810,1723029061357,-1187.93,0.0003315,14]
[334395811,1723029061367,-645.93,0.0003315,14]
[334395812,1723029061376,-500.0,0.0003315,14]
[334395813,1723029061386,-500.0,0.0003315,14]
[334395814,1723029061395,-1020.1,0.0003315,14]
[334395815,1723029061405,-500.0,0.0003315,14]
[334395816,1723029061414,-500.0,0.0003315,14]
[334395817,1723029061423,-500.0,0.0003315,14]
[334395818,1723029061432,-720.42,0.0003315,14]
[334395819,1723029061442,-581.74,0.0003315,14]
[334395820,1723029061452,-500.0,0.0003315,14]
[334395821,1723029061462,-444.48801933,0.0003315,14]
[334395822,1723029061471,-500.0,0.0003315,14]
[334395823,1723029061482,-923.4,0.0003315,14]
[334395824,1723029061491,-500.0,0.0003315,14]
[334395825,1723029061500,-500.0,0.0003315,14]
[334395826,1723029061511,-500.0,0.0003315,14]
[334395827,1723029061521,-534.66,0.0003315,14]
[334395828,1723029061531,-548.72,0.0003315,14]
[334395829,1723029061541,-671.94,0.0003315,14]
[334395830,1723029061551,-2664.41,0.0003315,14]
[334395831,1723029061561,-500.0,0.0003315,14]
[334395832,1723029061571,-1512.23,0.0003315,14]
[334395833,1723029061581,-1144.37,0.0003315,14]
[334395834,1723029061596,-500.0,0.0003315,14]
[334395835,1723029061605,-518.05,0.0003315,14]
[334395836,1723029061614,-1021.34,0.0003315,14]
[334395837,1723029061624,-500.0,0.0003315,14]
[334395838,1723029061633,-2148.85,0.0003315,14]
[334395839,1723029061643,-500.0,0.0003315,14]
[334395840,1723029061652,-500.0,0.0003315,14]
[334395841,1723029061661,-500.0,0.0003315,14]
[334395842,1723029061670,-1093.31,0.0003315,14]
[334395843,1723029061679,-2807.44,0.0003315,14]
[334395844,1723029061689,-500.0,0.0003315,14]
[334395845,1723029061698,-500.0,0.0003315,14]
[334395846,1723029061707,-500.0,0.0003315,14]
[334395847,1723029061716,-500.0,0.0003315,14]
[334395848,1723029061726,-500.0,0.0003315,14]
[334395849,1723029061735,-647.5,0.0003315,14]
[334395850,1723029061747,-972.5,0.0003315,14]
[334395851,1723029061759,-2896.75,0.0003315,14]
[334395852,1723029061771,-220.94061851,0.0003315,14]
[334395853,1723029061783,-836.81,0.0003315,14]
[334395854,1723029061793,-621.33,0.0003315,14]
[334395855,1723029061805,-500.0,0.0003315,14]
[334395856,1723029061815,-500.0,0.0003315,14]
[334395857,1723029061827,-500.0,0.0003315,14]
[334395858,1723029061839,-877.3,0.0003315,14]
[334395859,1723029061848,-500.0,0.0003315,14]
[334395860,1723029061858,-646.55,0.0003315,14]
[334395861,1723029061868,-811.6,0.0003315,14]
[334395862,1723029061877,-519.26,0.0003315,14]
[334395863,1723029061887,-500.0,0.0003315,14]
[334395864,1723029061897,-500.0,0.0003315,14]
[334395865,1723029061906,-377.15726095,0.0003315,14]
[334395866,1723029061915,-3787.31,0.0003315,14]
[334395867,1723029061925,-500.0,0.0003315,14]
[334395868,1723029061934,-676.38,0.0003315,14]
[334395869,1723029061945,-500.0,0.0003315,14]
[334395870,1723029061955,-1713.3,0.0003315,14]
[334395871,1723029061967,-500.0,0.0003315,14]
[334395872,1723029061976,-710.82,0.0003315,14]
[334395873,1723029061986,-502.89600577,0.0003315,14]
[334395874,1723029061998,-3403.09,0.0003315,14]
[334395875,1723029062007,-500.0,0.0003315,14]
[334395876,1723029062017,-8008.66,0.0003315,14]
[334395877,1723029062027,-1695.73,0.0003315,14]
[334395878,1723029062036,-500.0,0.0003315,14]
[334395879,1723029062045,-2652.65,0.0003315,14]
[334395880,1723029062055,-500.0,0.0003315,14]
[334395881,1723029062065,-676.41,0.0003315,14]
[334395882,1723029062075,-188.64527077,0.0003315,14]
[334395883,1723029062085,-4726.18,0.0003315,14]
[334395884,1723029062095,-631.77,0.0003315,14]
[334395885,1723029062104,-765.56,0.0003315,14]
[334395886,1723029062114,-524.76,0.0003315,14]
[334395887,1723029062123,-500.0,0.0003315,14]
[334395888,1723029062132,-500.0,0.0003315,14]
[334395889,1723029062142,-596.92,0.0003315,14]
[334395890,1723029062151,-2772.04,0.0003315,14]
[334395891,1723029062161,-500.0,0.0003315,14]
[334395892,1723029062170,-252.93024233,0.0003315,14]
[334395893,1723029062179,-500.0,0.0003315,14]
[334395894,1723029062189,-872.47,0.0003315,14]
[334395895,1723029062199,-500.0,0.0003315,14]
[334395896,1723029062208,-500.0,0.0003315,14]
[334395897,1723029062217,-2850.24,0.0003315,14]
[334395898,1723029062227,-2368.38,0.0003315,14]
[334395899,1723029062237,-918.69,0.0003315,14]
[334395900,1723029062247,-1182.98,0.0003315,14]
[334395901,1723029062256,-504.9345993,0.0003315,14]
[334395902,1723029062266,-500.0,0.0003315,14]
[334395903,1723029062275,-500.0,0.0003315,14]
[334395904,1723029062284,-787.24,0.0003315,14]
[334395905,1723029062294,-500.0,0.0003315,14]
[334395906,1723029062303,-500.0,0.0003315,14]
[334395907,1723029062313,-514.99248006,0.0003315,14]
[334395908,1723029062323,-500.0,0.0003315,14]
[334395909,1723029062332,-748.79,0.0003315,14]
[334395910,1723029062342,-1373.61,0.0003315,14]
[334395911,1723029062352,-1732.44,0.0003315,14]
[334395912,1723029062362,-500.0,0.0003315,14]
[334395913,1723029062372,-500.0,0.0003315,14]
[334395914,1723029062382,-1008.03,0.0003315,14]
[334395915,1723029062393,-705.51,0.0003315,14]
[334395916,1723029062405,-500.0,0.0003315,14]
[334395917,1723029062415,-5624.94,0.0003315,14]
[334395918,1723029062427,-4673.31,0.0003315,14]
[334395919,1723029062438,-2102.82,0.0003315,14]
[334395920,1723029062449,-683.38,0.0003315,14]
[334395921,1723029062459,-500.0,0.0003315,14]
[334395922,1723029062469,-500.0,0.0003315,14]
[334395923,1723029062479,-500.0,0.0003315,14]
[334395924,1723029062490,-500.0,0.0003315,14]
[334395925,1723029062502,-500.0,0.0003315,14]
[334395926,1723029062513,-1201.25,0.0003315,14]
[334395927,1723029062523,-5296.6,0.0003315,14]
[334395928,1723029062534,-500.0,0.0003315,14]
[334395929,1723029062544,-500.0,0.0003315,14]
[334395930,1723029062554,-754.45,0.0003315,14]
[334395931,1723029062563,-501.69519353,0.0003315,14]
[334395932,1723029062574,-6120.77,0.0003315,14]
[334395933,1723029062587,-500.0,0.0003315,14]
[334395934,1723029062599,-4115.44,0.0003315,14]
[334395935,1723029062611,-500.0,0.0003315,14]
[334395936,1723029062622,-2356.09,0.0003315,14]
[334395937,1723029062632,-1016.46,0.0003315,14]
[334395938,1723029062643,-357.75995298,0.0003315,14]
[334395939,1723029062653,-1373.79,0.0003315,14]
[334395940,1723029062664,-500.0,0.0003315,14]
[334395941,1723029062674,-27586.24,0.0003315,14]
[334395942,1723029062686,-641.2,0.0003315,14]
[334395943,1723029062698,-551.11,0.0003315,14]
[334395944,1723029062708,-2059.66,0.0003315,14]
[334395945,1723029062720,-884.77,0.0003315,14]
[334395946,1723029062730,-7553.97,0.0003315,14]
[334395947,1723029062741,-1858.24,0.0003315,14]
[334395948,1723029062752,-6001.15,0.0003315,14]
[334395949,1723029062762,-1904.11,0.0003315,14]
[334395950,1723029062771,-500.0,0.0003315,14]
[334395951,1723029062780,-1446.23,0.0003315,14]
[334395952,1723029062791,-3288.86,0.0003315,14]
[334395953,1723029062801,-577.95,0.0003315,14]
[334395954,1723029062811,-277.84397987,0.0003315,14]
[334395955,1723029062820,-4804.12,0.0003315,14]
[334395956,1723029062836,-509.19,0.0003315,14]
[334395957,1723029062846,-503.63184564,0.0003315,14]
[334395958,1723029062855,-873.14,0.0003315,14]
[334395959,1723029062864,-3091.7,0.0003315,14]
[334395960,1723029062874,-743.63,0.0003315,14]
[334395961,1723029062885,-1370.13,0.0003315,14]
[334395962,1723029062895,-18095.21,0.0003315,14]
[334395963,1723029062905,-500.0,0.0003315,14]
[334395964,1723029062916,-1609.93,0.0003315,14]
[334395965,1723029062928,-2388.37,0.0003315,14]
[334395966,1723029062939,-803.5,0.0003315,14]
[334395967,1723029062951,-4013.41,0.0003315,14]
[334395968,1723029062962,-602.9,0.0003315,14]
[334395969,1723029062973,-629.6,0.0003315,14]
[334395970,1723029062983,-2364.63,0.0003315,14]
[334395971,1723029062995,-1184.06,0.0003315,14]
[334395972,1723029063005,-500.0,0.0003315,14]
[334395973,1723029063015,-1150.86,0.0003315,14]
[334395974,1723029063025,-602.76,0.0003315,14]
[334395975,1723029063037,-20279.89,0.0003315,14]
[334395976,1723029063047,-500.0,0.0003315,14]
[334395977,1723029063057,-1372.29,0.0003315,14]
[334395978,1723029063066,-500.0,0.0003315,14]
[334395979,1723029063080,-500.0,0.0003315,14]
[334395980,1723029063091,-500.0,0.0003315,14]
[334395981,1723029063100,-11638.4,0.0003315,14]
[334395982,1723029063110,-189.61162963,0.0003315,14]
[334395983,1723029063120,-500.0,0.0003315,14]
[334395984,1723029063130,-500.0,0.0003315,14]
[334395985,1723029063140,-500.0,0.0003315,14]
[334395986,1723029063150,-1433.62,0.0003315,14]
[334395987,1723029063159,-500.0,0.0003315,14]
[334395988,1723029063171,-761.0,0.0003315,14]
[334395989,1723029063181,-500.0,0.0003315,14]
[334395990,1723029063192,-1750.38,0.0003315,14]
[334395991,1723029063202,-516.95174422,0.0003315,14]
[334395992,1723029063211,-500.0,0.0003315,14]
[334395993,1723029063221,-512.68,0.0003315,14]
[334395994,1723029063232,-11428.84,0.0003315,14]
[334395995,1723029063241,-746.77,0.0003315,14]
[334395996,1723029063251,-1433.26,0.0003315,14]
[334395997,1723029063261,-2496.12,0.0003315,14]
[334395998,1723029063272,-2356.96,0.0003315,14]
[334395999,1723029063283,-2975.06,0.0003315,14]
[334396000,1723029063294,-3825.94,0.0003315,14]
[334396001,1723029063303,-500.0,0.0003315,14]
[334396002,1723029063313,-1460.03,0.0003315,14]
[334396003,1723029063323,-500.0,0.0003315,14]
[334396004,1723029063336,-1424.73,0.0003315,14]
[334396005,1723029063347,-10865.29,0.0003315,14]
[334396006,1723029063357,-2785.33,0.0003315,14]
[334396007,1723029063367,-500.0,0.0003315,14]
[334396008,1723029063377,-500.0,0.0003315,14]
[334396009,1723029063387,-500.0,0.0003315,14]
[334396010,1723029063397,-500.0,0.0003315,14]
[334396011,1723029063407,-536.47,0.0003315,14]
[334396012,1723029063418,-973.08,0.0003315,14]
[334396013,1723029063428,-500.0,0.0003315,14]
[334396014,1723029063438,-6834.28,0.0003315,14]
[334396015,1723029063449,-795.32,0.0003315,14]
[334396016,1723029063460,-1637.95,0.0003315,14]
[334396017,1723029063471,-500.0,0.0003315,14]
[334396018,1723029063480,-500.0,0.0003315,14]
[334396019,1723029063491,-500.0,0.0003315,14]
[334396020,1723029063500,-1190.28,0.0003315,14]
[334396021,1723029063511,-500.0,0.0003315,14]
[334396022,1723029063521,-5590.89,0.0003315,14]
[334396023,1723029063531,-500.0,0.0003315,14]
[334396024,1723029063541,-500.0,0.0003315,14]
[334396025,1723029063552,-502.77,0.0003315,14]
[334396026,1723029063562,-2520.26,0.0003315,14]
[334396027,1723029063572,-1612.65,0.0003315,14]
[334396028,1723029063587,-267.2272044,0.0003315,14]
[334396029,1723029063597,-1790.94,0.0003315,14]
[334396030,1723029063606,-500.0,0.0003315,14]
[334396031,1723029063617,-500.0,0.0003315,14]
[334396032,1723029063628,-1565.92,0.0003315,14]
[334396033,1723029063638,-500.0,0.0003315,14]
[334396034,1723029063648,-739.25,0.0003315,14]
[334396035,1723029063658,-500.0,0.0003315,14]
[334396036,1723029063669,-500.0,0.0003315,14]
[334396037,1723029063679,-728.33,0.0003315,14]
[334396038,1723029063690,-709.69,0.0003315,14]
[334396039,1723029063700,-656.7,0.0003315,14]
[334396040,1723029063710,-2157.08,0.0003315,14]
[334396041,1723029063720,-527.28587637,0.0003315,14]
[334396042,1723029063731,-500.0,0.0003315,14]
[334396043,1723029063742,-2547.19,0.0003315,14]
[334396044,1723029063753,-1757.34,0.0003315,14]
[334396045,1723029063763,-1138.49,0.0003315,14]
[334396046,1723029063775,-943.14,0.0003315,14]
[334396047,1723029063785,-1214.45,0.0003315,14]
[334396048,1723029063795,-814.59,0.0003315,14]
[334396049,1723029063805,-500.0,0.0003315,14]
[334396050,1723029063816,-1713.75,0.0003315,14]
[334396051,1723029063826,-500.0,0.0003315,14]
[334396052,1723029063842,-849.27,0.0003315,14]
[334396053,1723029063853,-500.0,0.0003315,14]
[334396054,1723029063863,-153.0,0.00033151,2]
[334396055,1723029063873,-153.0,0.00033151,2]
[334396056,1723029063883,-153.0,0.00033151,2]
[334396057,1723029063894,-153.0,0.00033151,2]
[334396058,1723029063903,-153.0,0.00033151,2]
[334396059,1723029063913,-153.0,0.00033151,2]
[334396060,1723029063923,-153.0,0.00033151,2]
[334396061,1723029063933,-153.0,0.00033151,2]
[334396062,1723029063943,-153.0,0.00033151,2]
[334396063,1723029063953,-153.0,0.00033151,2]
[334396064,1723029063964,-196.90524,0.00033151,2]
[334396065,1723029063973,-153.0,0.00033151,2]
[334396066,1723029063984,-153.0,0.00033151,2]
[334396067,1723029063999,-153.0,0.00033151,2]
[334396068,1723029064012,-200.71252518,0.00033173,5]
[334396069,1723029064023,-158.18,0.00033173,5]
[334396070,1723029064034,-166.79,0.000332,30]
[334396071,1723029064046,-165.0,0.00033226,2]
[334396072,1723029064056,-175.0,0.00033226,2]
[334396073,1723029064069,-2222.93172395,0.00033231,2]
[334396074,1723029064080,-151.0,0.00033342,120]
[334396075,1723029064094,-1050.7976,0.000334,2]
[334396076,1723029064103,-150.0,0.00033412,7]
[334396077,1723029064114,-3200.0,0.00033412,2]
[334396078,1723029064124,-2000.0,0.00033423,14]
[334396079,1723029064133,-500.0,0.00033424,2]
[334396080,1723029064143,-1053.34,0.00033424,14]
[334396081,1723029064154,-500.0,0.00033424,14]
[334396082,1723029064318,-274.31647556,0.00033424,14]